bitfinex-derivatives/quotes_ETHF0:USTF0_20251107
["timestamp","ask_amount","ask_price","bid_price","bid_amount"]
[1762482721526,0.14531825,3307.5,3306.8,2.16281575]
[1762482721527,0.49014,3307.0,3306.8,2.16281575]
[1762482722216,0.49017,3306.8,3306.7,5.37061575]
[1762482722421,0.49017,3306.8,3306.7,3.2078]
[1762482722625,0.49013,3307.1,3306.7,7.0108]
[1762482722920,0.14531825,3307.5,3306.8,2.16286778]
[1762482723119,0.49014,3307.0,3306.9,0.49014]
[1762482723318,0.14531825,3307.5,3307.0,0.49013]
[1762482723518,0.49014,3307.0,3306.9,0.2371]
[1762482723919,0.49014,3307.0,3306.9,2.39996778]
[1762482724625,0.14531825,3307.5,3306.9,2.89011778]
[1762482724925,0.49011,3307.2,3307.1,0.2371]
[1762482726227,0.00251825,3307.5,3307.2,0.49011]
[1762482726717,0.73211,3307.2,3307.1,2.16286778]
[1762482726916,0.73212,3307.1,3307.0,2.16286778]
[1762482727121,0.242,3306.6,3306.5,0.00709658]
[1762482727321,0.7322,3306.6,3306.5,0.00709658]
[1762482728427,3.2078,3306.8,3305.6,2.16286778]
[1762482728428,0.73233,3305.7,3305.6,2.16286778]
[1762482728923,3.3515,3306.0,3305.6,2.16286778]
[1762482729123,3.3515,3306.5,3305.7,2.16286778]
[1762482729320,0.49027,3306.1,3306.0,0.2509]
[1762482729619,0.4903,3305.9,3305.8,0.00453762]
[1762482730528,0.00453762,3306.4,3305.8,0.00453762]
[1762482730826,0.49027,3306.1,3306.0,0.2509]
[1762482731423,0.00453762,3306.4,3306.3,0.2509]
[1762482732322,0.49015,3306.9,3306.7,0.49017]
[1762482732622,0.49015,3306.9,3306.8,0.2509]
[1762482732825,0.49019,3306.7,3306.5,2.15706227]
[1762482733019,0.49021,3306.6,3306.5,0.2509]
[1762482734122,0.49018,3306.8,3306.7,0.2509]
[1762482734420,0.49021,3306.5,3306.4,2.40796227]
[1762482734923,0.00453762,3306.9,3306.4,2.40796227]
[1762482735122,0.49468762,3306.9,3306.8,0.2509]
[1762482735523,0.49019,3306.6,3306.5,2.15706227]
[1762482736223,0.242,3306.5,3306.4,2.15706227]
[1762482736526,0.49022,3306.4,3306.3,11.38406227]
[1762482736924,0.49018,3306.7,3306.5,0.4902]
[1762482737129,0.49018,3306.7,3306.6,0.2509]
[1762482738922,0.00453762,3306.9,3306.8,0.74107]
[1762482739124,0.49468762,3306.9,3306.8,0.2509]
[1762482740830,0.49468762,3306.9,3306.6,5.36053108]
[1762482740831,0.73218,3306.7,3306.6,5.36053108]
[1762482741026,0.73218,3306.7,3306.6,3.2078]
[1762482743938,0.49018,3306.7,3306.6,3.2078]
[1762482745024,0.73218,3306.7,3306.6,3.2078]
[1762482745433,0.49018,3306.7,3306.6,3.2078]
[1762482746028,0.00453762,3306.9,3306.6,3.2078]
[1762482746029,0.00453762,3306.9,3306.8,0.74107]
[1762482746229,0.49468762,3306.9,3306.8,0.2509]
[1762482746626,0.73217,3306.8,3306.7,3.803]
[1762482747429,0.73224,3306.3,3306.2,3.2078]
[1762482747634,0.3857,3306.0,3305.9,2.15273108]
[1762482747835,0.3857,3306.0,3305.8,5.3650687]
[1762482748032,0.4903,3305.9,3305.8,5.3650687]
[1762482748235,0.4903,3305.9,3305.8,3.21233762]
[1762482749037,0.7323,3305.9,3305.8,3.21233762]
[1762482749933,0.4903,3305.9,3305.8,3.21233762]
[1762482750236,0.4903,3305.9,3305.8,0.00453762]
[1762482750537,0.7323,3305.9,3305.8,0.15063762]
[1762482751240,0.4903,3305.9,3305.8,0.15063762]
[1762482751439,0.7323,3305.9,3305.8,0.15063762]
[1762482752032,0.4903,3305.9,3305.8,0.15063762]
[1762482753138,0.7323,3305.9,3305.8,0.15063762]
[1762482753534,0.49025,3306.2,3306.1,0.2509]
[1762482753739,3.2078,3306.5,3306.2,0.2509]
[1762482753931,3.69801,3306.5,3306.4,0.2509]
[1762482754240,3.69801,3306.5,3306.4,0.74112]
[1762482754632,3.69801,3306.5,3306.4,0.2509]
[1762482754831,0.49017,3306.8,3306.4,3.4587]
[1762482755035,0.00453762,3306.9,3306.8,0.2539]
[1762482755235,0.48995,3308.3,3308.2,0.2539]
[1762482755439,3.2078,3309.2,3308.1,3.2078]
[1762482755644,0.48988,3308.8,3308.7,0.2539]
[1762482756043,0.151,3309.5,3308.9,0.2539]
[1762482756335,0.48981,3309.3,3309.2,0.2539]
[1762482756539,0.00762773,3309.5,3309.2,0.2539]
[1762482756730,0.00762773,3309.5,3309.0,3.2078]
[1762482756731,3.2078,3310.0,3309.4,0.2539]
[1762482756932,3.2078,3310.4,3309.6,0.1416]
[1762482757134,0.48958,3310.8,3310.3,3.4617]
[1762482757440,3.2078,3311.6,3310.8,0.1416]
[1762482757641,3.2078,3311.6,3310.9,9.222]
[1762482757831,3.2078,3311.2,3310.9,0.00453056]
[1762482758141,0.87824,3311.0,3310.9,0.00453056]
[1762482758444,0.48954,3311.0,3310.9,0.00453056]
[1762482758842,0.48954,3311.1,3310.9,0.00453056]
[1762482759036,0.00453056,3311.5,3310.9,0.00453056]
[1762482759438,0.48954,3311.1,3310.9,0.00453056]
[1762482760536,0.48949,3311.4,3310.9,0.00453056]
[1762482760738,0.00453056,3311.5,3311.0,0.1466]
[1762482760940,0.00453056,3311.5,3311.4,0.2538]
[1762482761142,0.00453056,3311.5,3311.4,0.25764226]
[1762482762938,0.00269697,3311.6,3311.5,0.74327]
[1762482763241,0.48934,3312.4,3312.3,0.2538]
[1762482763634,3.2078,3312.9,3312.3,0.2538]
[1762482763946,0.48933,3312.4,3312.3,0.2538]
[1762482764149,0.003905,3312.4,3312.3,0.2538]
[1762482764346,3.69707,3312.9,3312.3,0.74314]
[1762482764639,3.2078,3312.9,3312.8,0.2538]
[1762482765041,0.4893,3312.7,3312.3,9.214]
[1762482765245,0.48931,3312.6,3312.3,9.214]
[1762482765447,3.2078,3312.9,3312.8,0.2538]
[1762482765646,3.21139009,3312.9,3312.8,0.2538]
[1762482765848,3.70065009,3312.9,3312.8,0.2538]
[1762482766052,0.48929,3312.8,3312.3,9.214]
[1762482766343,0.4893,3312.7,3312.3,9.214]
[1762482766543,0.4893,3312.7,3312.5,3.2078]
[1762482766748,0.00359009,3312.9,3312.3,3.308]
[1762482766749,0.48931,3312.6,3312.3,3.308]
[1762482767042,0.00359009,3312.9,3312.3,3.308]
[1762482767043,0.48933,3312.5,3312.4,3.2078]
[1762482767450,0.48933,3312.5,3312.3,3.308]
[1762482767649,0.48933,3312.5,3312.4,0.2538]
[1762482767850,0.00359009,3312.9,3312.8,0.2538]
[1762482768046,0.00359009,3312.9,3312.8,3.4616]
[1762482768647,0.00359009,3312.9,3312.8,11.4616]
[1762482768852,3.2078,3314.8,3312.8,52.0078]
[1762482769047,3.2078,3314.8,3314.0,3.2078]
[1762482769250,3.2078,3314.8,3314.2,0.48906]
[1762482769549,3.69678,3314.8,3314.2,0.48906]
[1762482769741,0.0026031,3314.8,3314.4,3.2078]
[1762482769947,3.2104031,3314.8,3314.4,3.2078]
[1762482770148,0.48902,3314.6,3314.4,3.2078]
[1762482770457,0.0026031,3314.8,3314.7,0.2538]
[1762482770850,0.48899,3314.7,3314.4,3.2078]
[1762482771151,0.48902,3314.6,3314.4,3.2078]
[1762482771547,0.48904,3314.4,3314.2,0.00305301]
[1762482773653,0.0026031,3314.8,3314.2,0.00305301]
[1762482773856,0.0026031,3314.8,3314.7,0.2538]
[1762482775345,0.48901,3314.6,3314.4,3.2078]
[1762482776352,0.0026031,3314.8,3314.4,3.2078]
[1762482776555,0.0026031,3314.8,3314.7,0.2538]
[1762482777152,0.0026031,3314.8,3314.4,12.4108]
[1762482777352,0.4915831,3314.8,3314.4,12.89983]
[1762482777559,0.0026031,3314.8,3314.7,0.2538]
[1762482780258,0.0026031,3314.8,3314.6,0.489]
[1762482780559,0.0026031,3314.8,3314.7,0.2538]
[1762482780957,0.48888,3315.5,3315.1,0.48892]
[1762482781158,3.2078,3315.7,3315.2,3.69672]
[1762482781360,0.48882,3315.9,3315.6,3.2078]
[1762482781560,0.48883,3315.8,3315.6,3.2078]
[1762482781959,0.00359036,3315.8,3315.7,0.2538]
[1762482782265,0.49243036,3315.8,3315.6,3.2078]
[1762482782460,0.2433,3315.7,3315.6,3.2078]
[1762482782659,0.2433,3315.7,3314.4,3.2078]
[1762482782660,0.1454,3315.0,3314.4,3.2078]
[1762482782862,0.48905,3314.3,3314.0,3.2078]
[1762482783361,0.48905,3314.3,3313.5,20.066]
[1762482783362,0.73235,3314.3,3313.6,3.2078]
[1762482783863,0.73235,3314.3,3313.9,0.00452365]
[1762482784059,0.00451028,3314.6,3314.5,0.2538]
[1762482784260,3.2078,3315.5,3314.5,3.3494]
[1762482784462,0.48896,3314.9,3314.7,0.2538]
[1762482784664,0.48891,3315.3,3314.7,0.48899]
[1762482784866,0.48897,3314.9,3314.6,9.214]
[1762482785055,3.2078,3315.5,3314.6,9.214]
[1762482785258,0.48898,3314.8,3314.6,9.214]
[1762482786070,3.2078,3315.5,3314.6,9.214]
[1762482786364,0.48885,3315.7,3315.4,3.2078]
[1762482786561,0.48887,3315.5,3315.4,3.4617]
[1762482786756,0.48886,3315.6,3315.4,3.4617]
[1762482787065,3.2078,3315.9,3315.4,3.95058]
[1762482787260,0.49242036,3315.8,3315.4,3.95058]
[1762482787461,0.48885,3315.7,3315.4,3.4617]
[1762482787668,0.48886,3315.6,3315.4,3.4617]
[1762482788063,0.00359036,3315.8,3315.4,3.4617]
[1762482788266,0.00359036,3315.8,3315.7,0.2539]
[1762482788467,0.48887,3315.5,3315.4,3.2078]
[1762482788865,0.49243036,3315.8,3315.7,0.2539]
[1762482789164,0.00359036,3315.8,3315.7,0.2539]
[1762482790162,3.2078,3316.3,3316.2,0.2539]
[1762482790765,3.2078,3317.1,3316.3,0.48875]
[1762482790960,0.48869,3316.8,3316.3,0.48875]
[1762482791165,0.00242822,3316.8,3316.2,3.2078]
[1762482791364,0.48875,3316.4,3316.2,3.2078]
[1762482791570,2.69897822,3317.1,3316.2,3.2078]
[1762482791972,2.69897822,3317.1,3316.4,0.48874]
[1762482791973,0.4887,3316.7,3316.4,0.48874]
[1762482792166,0.1512,3318.0,3316.6,3.3494]
[1762482792477,0.1512,3317.3,3317.2,3.69642]
[1762482792876,0.1512,3317.3,3317.2,12.94542]
[1762482793178,0.1512,3317.3,3317.2,3.2078]
[1762482793367,0.1512,3317.3,3317.2,6.8198]
[1762482794973,0.1512,3317.3,3317.2,7.30842]
[1762482795671,0.1512,3317.3,3317.2,6.8198]
[1762482796076,0.48852,3317.9,3317.5,0.48857]
[1762482796272,0.48852,3317.9,3317.8,3.2078]
[1762482796476,3.2078,3318.8,3318.3,0.48845]
[1762482796665,0.1512,3319.4,3318.5,0.48843]
[1762482796867,0.1512,3319.4,3319.0,0.48835]
[1762482797175,0.1512,3319.4,3319.3,3.2078]
[1762482797476,0.1512,3319.4,3319.1,9.248]
[1762482797775,0.48831,3319.3,3319.1,0.00254558]
[1762482798364,0.00237302,3319.4,3319.1,0.00254558]
[1762482798571,0.1512,3320.1,3319.3,3.2078]
[1762482798775,0.1512,3320.1,3319.9,3.2078]
[1762482799278,0.1512,3320.1,3319.9,3.69602]
[1762482799474,0.15412778,3320.1,3319.9,3.69602]
[1762482799881,0.15412778,3320.1,3319.9,3.2078]
[1762482800181,0.15412778,3320.1,3319.9,3.69602]
[1762482800383,0.00292778,3320.1,3319.9,3.69602]
[1762482800687,0.1512,3320.8,3320.6,0.48811]
[1762482800878,0.1512,3321.5,3320.7,3.6959]
[1762482800879,0.48801,3321.4,3320.7,3.6959]
[1762482801183,0.48801,3321.4,3321.3,3.2078]
[1762482801585,0.49050342,3321.4,3321.3,3.2078]
[1762482801880,0.00249342,3321.4,3321.3,3.2078]
[1762482802586,0.00249342,3321.4,3321.3,2.7122167]
[1762482803090,0.48805,3321.1,3320.9,3.2078]
[1762482804290,0.48803,3321.3,3320.9,3.2078]
[1762482804774,0.00249342,3321.4,3320.9,3.69587]
[1762482804979,0.00249342,3321.4,3321.3,3.2078]
[1762482806786,0.48806,3321.1,3320.9,3.2078]
[1762482807177,3.2078,3321.1,3320.5,3.2078]
[1762482807380,0.00249342,3321.4,3320.5,3.2078]
[1762482807577,0.00249342,3321.4,3320.8,3.2078]
[1762482807891,0.48807,3321.0,3320.8,3.2078]
[1762482808091,0.2438,3320.9,3320.8,3.2078]
[1762482808295,0.48807,3321.0,3320.8,3.2078]
[1762482808585,0.48814,3320.5,3320.4,3.21232365]
[1762482808884,3.21029342,3321.4,3321.0,0.48806]
[1762482809081,0.00249342,3321.4,3321.3,3.2078]
[1762482809481,0.48806,3321.0,3320.9,3.2078]
[1762482809678,0.00249342,3321.4,3320.9,3.2078]
[1762482809679,0.48806,3321.1,3320.9,3.2078]
[1762482809881,0.00249342,3321.4,3320.9,3.2078]
[1762482810283,0.00249342,3321.4,3320.9,3.69587]
[1762482810591,0.48804,3321.2,3320.9,3.2078]
[1762482810891,0.48805,3321.1,3320.9,3.2078]
[1762482811087,0.00249342,3321.4,3320.9,3.2078]
[1762482811088,0.00249342,3321.4,3321.2,0.48803]
[1762482811389,0.00249342,3321.4,3321.3,3.2078]
[1762482813993,0.48806,3321.0,3320.9,3.2078]
[1762482814192,0.48812,3320.6,3320.4,0.00452365]
[1762482815591,0.48825,3319.7,3319.6,3.2078]
[1762482815791,0.48831,3319.3,3319.2,4.2078]
[1762482816090,0.1501,3319.4,3319.2,4.69612]
[1762482816296,0.48821,3320.0,3319.5,0.48828]
[1762482816498,0.48824,3319.8,3319.6,3.2078]
[1762482816897,0.00450004,3320.0,3319.7,0.48825]
[1762482817598,0.48825,3319.8,3319.6,3.2078]
[1762482818196,0.2439,3319.7,3319.6,3.2078]
[1762482818697,0.48825,3319.8,3319.6,3.2078]
[1762482820095,0.00450004,3320.0,3319.7,0.48825]
[1762482820400,0.00450004,3320.0,3319.6,3.2078]
[1762482820600,0.48825,3319.8,3319.6,3.2078]
[1762482821500,0.48823,3319.9,3319.6,3.69606]
[1762482821701,0.48825,3319.8,3319.6,3.69606]
[1762482822002,0.48825,3319.8,3319.6,3.2078]
[1762482822905,0.48823,3319.9,3319.7,0.48825]
[1762482823500,0.49272004,3320.0,3319.8,0.48824]
[1762482823694,0.00450004,3320.0,3319.7,0.48825]
[1762482824699,0.48825,3319.8,3319.6,3.2078]
[1762482825299,0.00450004,3320.0,3319.6,3.2078]
[1762482825503,0.00450004,3320.0,3319.9,0.48823]
[1762482825696,0.48824,3319.8,3319.7,0.48824]
[1762482826303,0.00450004,3320.0,3319.9,0.48823]
[1762482828499,0.64025,3320.4,3319.6,3.2078]
[1762482828704,0.64025,3320.4,3320.3,0.48817]
[1762482829100,0.1521,3320.4,3320.3,0.48817]
[1762482829306,0.63931,3320.8,3320.7,0.48811]
[1762482829702,0.1512,3320.8,3320.7,0.48811]
[1762482829907,0.48805,3321.1,3320.6,3.2078]
[1762482830100,0.49050342,3321.4,3321.2,0.48803]
[1762482830496,0.48802,3321.3,3321.2,0.48803]
[1762482830700,0.00249342,3321.4,3321.2,0.48803]
[1762482830901,0.00249342,3321.4,3321.3,0.48802]
[1762482831297,3.2078,3322.0,3321.0,3.2078]
[1762482831505,3.2078,3322.0,3320.5,3.511]
[1762482831506,0.48794,3321.9,3321.6,0.48797]
[1762482831702,0.48794,3321.9,3321.7,0.48796]
[1762482832204,0.00335254,3321.9,3321.8,3.2078]
[1762482832406,0.48785,3322.5,3321.8,3.2078]
[1762482832605,0.63999,3322.2,3321.8,3.2078]
[1762482832802,0.1521,3322.2,3321.8,3.2078]
[1762482833004,0.1521,3322.2,3322.0,0.48791]
[1762482833303,3.3599,3322.8,3321.8,3.2078]
[1762482833613,0.48774,3323.2,3322.8,0.48779]
[1762482833614,0.48775,3323.2,3322.8,0.48779]
[1762482833807,0.48775,3323.2,3323.0,3.2078]
[1762482834005,0.63991,3322.8,3322.6,3.2078]
[1762482834502,0.64296068,3322.8,3322.6,3.2078]
[1762482838107,0.2496,3322.7,3322.6,3.2078]
[1762482838310,0.64295068,3322.8,3322.6,3.2078]
[1762482838517,0.15515068,3322.8,3322.6,3.69563]
[1762482839013,0.64296068,3322.8,3322.6,3.69563]
[1762482839710,0.64296068,3322.8,3321.7,0.00264733]
[1762482839711,0.15515068,3322.8,3322.2,3.2078]
[1762482840013,0.48787,3322.3,3322.2,3.2078]
[1762482840218,3.36295068,3322.8,3321.8,3.2078]
[1762482840219,0.48791,3322.1,3321.8,3.2078]
[1762482840515,3.36295068,3322.8,3321.7,0.00264733]
[1762482840516,0.73755,3321.8,3321.7,0.00264733]
[1762482840711,0.1521,3322.2,3321.7,0.00264733]
[1762482840916,0.1521,3322.2,3322.1,3.2078]
[1762482841113,0.48793,3321.9,3321.7,0.00264733]
[1762482841510,0.2496,3321.8,3321.7,0.00264733]
[1762482844614,0.73762,3321.3,3321.2,3.21231658]
[1762482844817,0.73762,3321.3,3321.2,0.00451658]
[1762482845519,0.1521,3321.6,3321.2,0.00451658]
[1762482845520,0.48799,3321.5,3321.2,3.21510865]
[1762482845713,0.2403,3321.3,3321.2,3.21510865]
[1762482846413,0.48801,3321.4,3321.2,3.21510865]
[1762482848713,0.48792,3322.0,3321.8,0.50795]
[1762482848913,0.48786,3322.4,3322.1,0.5079]
[1762482849114,3.36295068,3322.8,3322.2,0.48789]
[1762482849318,3.36295068,3322.8,3322.0,3.2078]
[1762482849712,3.36295068,3322.8,3321.2,0.00730865]
[1762482849713,0.15515068,3322.8,3322.4,3.2078]
[1762482849922,0.48784,3322.6,3322.4,3.2078]
[1762482850115,0.2403,3322.5,3322.4,3.2078]
[1762482850522,0.1449,3322.2,3322.0,3.2078]
[1762482850914,0.63279,3322.2,3322.0,3.69571]
[1762482851119,0.1449,3321.6,3321.2,0.00730865]
[1762482851315,0.48798,3321.6,3321.2,0.00730865]
[1762482851915,0.48798,3321.6,3321.5,0.02]
[1762482852518,0.48802,3321.3,3321.2,0.00730865]
[1762482852714,0.72832,3321.3,3321.2,0.00730865]
[1762482852910,0.48811,3320.7,3320.6,3.2078]
[1762482853917,0.48811,3320.7,3320.0,1.0]
[1762482853918,0.87336,3320.4,3320.3,0.00451658]
[1762482854124,0.87581968,3320.4,3320.3,0.0032042]
[1762482854425,0.87581968,3320.4,3320.3,4.2e-06]
[1762482854917,0.87581968,3320.4,3320.0,0.90345063]
[1762482854918,0.7285,3320.1,3320.0,0.90345063]
[1762482855120,3.9363,3320.1,3320.0,0.13895063]
[1762482856124,0.7285,3320.1,3320.0,0.14147767]
[1762482856723,0.00245968,3320.4,3320.3,0.72337]
[1762482857030,0.00451658,3321.0,3320.9,0.2352]
[1762482857225,0.00451658,3321.0,3320.8,0.48809]
[1762482857827,0.00240159,3321.0,3320.9,0.72328]
[1762482858026,3.2078,3321.8,3320.9,0.2352]
[1762482858327,3.2078,3322.3,3321.7,0.2352]
[1762482858626,3.2078,3322.3,3321.9,0.48793]
[1762482859022,0.48791,3322.1,3321.9,0.48793]
[1762482859217,0.48793,3322.0,3321.8,0.00451658]
[1762482860926,0.48793,3322.0,3321.8,0.49245658]
[1762482861129,3.4481,3321.9,3321.8,0.00451658]
[1762482861833,0.48793,3322.0,3321.8,0.00451658]
[1762482862425,0.48789,3322.2,3321.8,0.00451658]
[1762482862729,0.48789,3322.2,3322.0,0.48791]
[1762482863326,3.20993701,3322.3,3321.8,0.00451658]
[1762482863539,0.48792,3322.0,3321.8,0.00451658]
[1762482863842,3.20993701,3322.3,3322.0,0.48792]
[1762482864044,3.20993701,3322.3,3321.8,0.00451658]
[1762482864242,0.00213701,3322.3,3322.1,0.4879]
[1762482864443,0.00451658,3322.4,3322.3,0.72307]
[1762482864636,0.48778,3323.0,3322.8,0.4878]
[1762482865040,0.48773,3323.3,3323.1,0.48775]
[1762482865451,0.49144488,3323.3,3323.1,0.49049175]
[1762482865949,0.49144488,3323.3,3323.1,0.00274175]
[1762482866243,3.4481,3323.2,3323.1,0.00274175]
[1762482866447,3.2078,3323.2,3323.1,0.00274175]
[1762482866642,0.00371488,3323.3,3323.1,0.49049175]
[1762482866845,0.48769,3323.6,3323.3,0.48773]
[1762482867050,0.1449,3325.0,3323.2,3.2078]
[1762482867051,3.2078,3324.6,3323.2,3.2078]
[1762482867351,3.2078,3324.6,3324.0,3.2078]
[1762482867352,0.4876,3324.2,3324.0,3.2078]
[1762482867552,0.48772,3323.4,3323.1,0.00725833]
[1762482867746,3.2078,3324.2,3323.1,0.49500833]
[1762482867944,0.00279468,3323.4,3323.3,0.72293]
[1762482868251,0.48767,3323.7,3323.3,3.93072]
[1762482868443,3.2078,3324.2,3323.3,3.443]
[1762482868648,0.48774,3323.3,3323.1,0.00725833]
[1762482869139,0.49122206,3323.3,3323.1,0.00725833]
[1762482869344,0.2403,3323.2,3323.1,0.00725833]
[1762482869546,0.49122206,3323.3,3323.1,0.00725833]
[1762482869843,0.2403,3323.2,3323.1,0.00725833]
[1762482870044,0.49122206,3323.3,3323.1,0.00725833]
[1762482871548,0.49121206,3323.3,3323.1,0.49500833]
[1762482871752,0.49121206,3323.3,3323.1,0.00725833]
[1762482872240,0.4877,3323.5,3323.2,0.48773]
[1762482872443,3.2078,3324.2,3323.4,3.6955]
[1762482872640,0.48766,3323.8,3323.6,0.48768]
[1762482872843,0.48766,3323.8,3323.7,0.2352]
[1762482873045,3.2078,3324.2,3323.7,0.2352]
[1762482873046,0.48763,3324.0,3323.7,0.2352]
[1762482873249,0.48763,3324.0,3323.8,3.2078]
[1762482873551,0.49123658,3324.0,3323.8,3.2078]
[1762482873743,0.48765,3323.9,3323.6,0.1497]
[1762482873949,0.48766,3323.8,3323.6,0.1497]
[1762482874352,0.728,3323.5,3323.4,3.2078]
[1762482874752,0.4877,3323.5,3323.4,3.2078]
[1762482876255,0.48774,3323.2,3323.1,0.00725833]
[1762482876448,0.71824,3323.2,3323.1,0.00725833]
[1762482876647,0.4877,3323.5,3323.1,0.00725833]
[1762482876951,0.48771,3323.4,3323.1,0.49500833]
[1762482877155,0.48771,3323.4,3323.3,0.2438]
[1762482879458,3.2078,3323.8,3323.1,0.00725833]
[1762482879653,0.00360658,3324.0,3323.5,0.48769]
[1762482880052,0.48767,3323.7,3323.6,0.237]
[1762482880253,0.4877,3323.5,3323.4,3.2078]
[1762482880864,0.48772,3323.4,3323.1,0.49500833]
[1762482881059,0.48772,3323.4,3323.2,0.48773]
[1762482881654,0.48772,3323.4,3323.1,0.00725833]
[1762482881655,0.72134,3323.2,3323.1,0.00725833]
[1762482882256,0.48774,3323.2,3323.1,0.00725833]
[1762482882461,3.2078,3323.8,3323.1,0.00725833]
[1762482882754,0.48773,3323.3,3323.2,0.237]
[1762482883162,0.48774,3323.2,3323.1,0.49500833]
[1762482883362,0.48771,3323.4,3323.1,0.49500833]
[1762482883558,0.48772,3323.3,3323.2,0.48774]
[1762482884558,0.48771,3323.4,3323.3,0.48772]
[1762482884759,3.2078,3323.8,3323.1,0.00725833]
[1762482885666,0.48774,3323.2,3323.1,0.00725833]
[1762482886665,0.48774,3323.2,3323.1,0.14620896]
[1762482887567,0.72134,3323.2,3323.1,0.14620896]
[1762482888170,0.48774,3323.2,3323.1,0.14620896]
[1762482888862,0.48773,3323.3,3323.2,0.72474]
[1762482889365,0.48773,3323.3,3323.2,0.48774]
[1762482889559,3.2078,3323.9,3323.2,0.48774]
[1762482890155,0.48772,3323.4,3323.3,0.48772]
[1762482890766,0.48766,3323.8,3323.5,0.48769]
[1762482890967,0.48768,3323.7,3323.6,0.48768]
[1762482891769,0.48764,3323.9,3323.7,0.48766]
[1762482891961,0.48765,3323.8,3323.7,0.72466]
[1762482892365,0.48768,3323.7,3323.5,3.69548]
[1762482892664,0.72128,3323.6,3323.5,3.2078]
[1762482892860,0.72134,3323.2,3323.1,0.14620896]
[1762482893062,3.2078,3323.9,3323.1,3.35400896]
[1762482893569,0.00360658,3324.0,3323.7,0.48766]
[1762482893765,0.00360658,3324.0,3323.6,3.2078]
[1762482893967,0.00360658,3324.0,3323.9,0.72464]
[1762482894373,0.49122658,3324.0,3323.9,0.237]
[1762482894767,0.00360658,3324.0,3323.6,3.69548]
[1762482894967,0.72127,3323.7,3323.6,3.2078]
[1762482895171,0.72134,3323.2,3323.1,5.50370113]
[1762482895366,0.72134,3323.2,3323.1,3.35400896]
[1762482895569,0.72134,3323.2,3323.1,0.14620896]
[1762482895770,6.73974,3323.2,3323.1,0.14620896]
[1762482896076,0.72134,3323.2,3323.1,0.14620896]
[1762482897966,0.72134,3323.2,3323.1,0.13471612]
[1762482898171,0.72146,3322.4,3322.3,3.2078]
[1762482898375,3.2078,3323.0,3322.4,0.48786]
[1762482898679,3.2078,3323.0,3322.3,3.2078]
[1762482898970,0.48786,3322.4,3322.3,3.21474014]
[1762482899675,0.2336,3322.4,3322.3,3.21474014]
[1762482899967,0.48785,3322.5,3322.3,3.21474014]
[1762482902167,0.2336,3322.4,3322.3,0.00694014]
[1762482902366,0.2336,3322.4,3322.3,1.4e-07]
[1762482902578,0.48803,3321.2,3321.1,3.2078]
[1762482902777,3.2078,3321.6,3321.1,3.2078]
[1762482903068,2.6540068,3323.8,3320.4,2.84801555]
[1762482903069,0.48786,3322.4,3322.2,0.62949]
[1762482903275,3.2078,3322.5,3321.6,2.26596908]
[1762482903473,0.72155,3321.8,3321.7,0.00451658]
[1762482903877,0.2336,3321.8,3321.7,0.00451658]
[1762482904070,0.72155,3321.8,3321.7,0.00451658]
[1762482905074,3.21017862,3322.5,3321.7,0.00451658]
[1762482905280,0.48793,3321.9,3321.7,0.00451658]
[1762482905472,0.48793,3321.9,3321.7,0.49247658]
[1762482905776,0.48791,3322.1,3322.0,0.2457]
[1762482906178,0.48793,3321.9,3321.8,3.2078]
[1762482906375,0.49022862,3322.5,3321.7,0.00451658]
[1762482906571,0.00237862,3322.5,3322.4,0.2457]
[1762482906770,0.00237862,3322.5,3322.2,3.3465]
[1762482906973,0.48786,3322.4,3322.2,3.83439]
[1762482907277,0.2445,3321.8,3321.7,0.00451658]
[1762482907774,6.2653,3321.8,3321.7,1.658e-05]
[1762482907969,0.2445,3321.7,3321.4,3.11349186]
[1762482908184,0.73256,3321.0,3320.9,3.2078]
[1762482908675,0.1377,3321.6,3320.1,2.12436908]
[1762482908676,0.48814,3320.6,3320.5,3.2078]
[1762482909180,0.73264,3320.6,3320.5,3.21009248]
[1762482909676,0.49259658,3320.9,3320.5,3.21009248]
[1762482909881,0.48811,3320.7,3320.5,3.21009248]
[1762482910076,0.4881,3320.8,3320.5,3.69822248]
[1762482910277,0.4881,3320.8,3320.6,0.48812]
[1762482910679,0.00451658,3320.9,3320.7,0.48809]
[1762482911081,0.48811,3320.7,3320.5,3.69822248]
[1762482911377,0.49260658,3320.9,3320.6,0.48811]
[1762482911579,0.00451658,3320.9,3320.7,0.4881]
[1762482911777,0.49259658,3320.9,3320.7,0.4881]
[1762482912178,0.4881,3320.8,3320.5,3.69822248]
[1762482912686,3.93837862,3322.5,3321.1,0.2457]
[1762482912687,0.48804,3321.2,3321.1,0.2457]
[1762482912980,3.2078,3321.9,3321.7,0.2457]
[1762482913183,0.49022862,3322.5,3322.1,0.4879]
[1762482913377,3.2078,3323.2,3322.4,0.2457]
[1762482913681,0.00451658,3323.1,3323.0,0.2457]
[1762482914083,0.49228658,3323.1,3322.8,0.1387]
[1762482914281,0.49228658,3323.1,3322.8,0.62649]
[1762482914487,0.00782104,3323.1,3322.9,0.48778]
[1762482914789,0.49558104,3323.1,3322.8,0.63019091]
[1762482915088,0.00782104,3323.1,3323.0,0.2457]
[1762482916088,0.48777,3323.0,3322.8,0.00369091]
[1762482916893,0.00782104,3323.1,3323.0,0.2457]
[1762482917780,0.00782104,3323.1,3322.8,0.00369091]
[1762482917981,0.00782104,3323.1,3323.0,0.2457]
[1762482918590,3.2078,3324.0,3322.8,0.14239091]
[1762482918889,3.2078,3323.6,3322.8,0.14239091]
[1762482919094,0.48777,3323.0,3322.8,0.00369091]
[1762482919591,0.49133835,3323.0,3322.8,0.00369091]
[1762482919893,0.49133835,3323.0,3322.8,0.49148091]
[1762482920096,0.00356835,3323.0,3322.9,0.2457]
[1762482920390,0.49133835,3323.0,3322.8,0.63018091]
[1762482920794,0.49133835,3323.0,3322.8,0.14239091]
[1762482920993,0.2445,3322.9,3322.8,0.00369091]